Cogmind - Beta 13 @@@ ROGUE MODE // 2024.06.21 @ 01:55:01 Player: Xintrosi Result: Destroyed by DT-O0V(R) with Subdweller Machine Gun Performance ------------- Evolutions (0) 0 Regions Visited (2) 400 Robots Destroyed (28) 140 Value Destroyed (655) 655 Prototype IDs (2) 40 Alien Tech Used (0) 0 Bonus (0) 0 TOTAL SCORE: 1235 Bonus ------- None Cogmind --------- Core Integrity 0/250 Matter 300/300 Energy 246/250 System Corruption 0% Temperature Cool (2) Movement Treading (250) Ox1 Location -10/Subcaves Parts ------- > --- POWER (1) -------- Ion Engine > --- PROPULSION (2) --- Light Treads Spiked Treads > --- UTILITY (2) ------ High-capacity Storage Unit Improved Terrain Scanner > --- WEAPON (2) ------- Subdweller Beam Cannon Battle Rifle > --- INVENTORY (20) --- Light Ion Engine Subdweller Power Source Subdweller Power Source Subdweller Power Source Subdweller Monowheel Subdweller Monowheel Medium Matter Pod (100) Medium Matter Pod (100) Medium Matter Pod (100) Weight Redist. System Structural Scanner Subdweller Optics Core Shielding Makeshift Light Armor Plating Scrap Shield Subdweller Laser Battle Rifle Light Cannon Subdweller Shrapnel Launcher Peak State ------------ > --- POWER ------------ Ion Engine > --- PROPULSION ------- Spiked Treads Subdweller Monowheel > --- UTILITY ---------- High-capacity Storage Unit Makeshift Light Armor Plating > --- WEAPON ----------- Subdweller Laser Battle Rifle > --- INVENTORY -------- Light Ion Engine Subdweller Power Source Subdweller Power Source Subdweller Power Source Light Treads Medium Matter Pod Medium Matter Pod Medium Matter Pod Weight Redist. System Structural Scanner Subdweller Optics Improved Terrain Scanner Core Shielding Scrap Shield EM Pulse Gun Subdweller Beam Cannon Battle Rifle Light Cannon Subdweller Shrapnel Launcher [Rating: 17] Favorites ----------- Power Ion Engine Engine Ion Engine Power Core Light Nuclear Core Propulsion Light Treads Treads Light Treads Wheel Wheel Utility High-capacity Storage Unit Device Improved Terrain Scanner Storage High-capacity Storage Unit Protection Core Shielding Weapon Small Laser Energy Gun Small Laser Energy Cannon Subdweller Beam Cannon Ballistic Gun Light Assault Rifle Ballistic Cannon Light Cannon Launcher Grenade Launcher Build | -11 -10 -10 ------- Run | Yrd Mat Sub Slots Evolved . | . . . Power . | . . . Propulsion . | . . . Utility . | . . . Weapon . | . . . Parts Attached 42 | 8 17 17 Power 3 | 1 2 . Engine 2 | 1 1 . Core 1 | . 1 . Reactor . | . . . Propulsion 16 | 2 7 7 Treads 9 | 2 3 4 Leg . | . . . Wheel 7 | . 4 3 Hover . | . . . Flight . | . . . Utility 10 | 3 2 5 Device 6 | 2 1 3 Storage 2 | 1 1 . Processor . | . . . Hackware . | . . . Protection 2 | . . 2 Artifact . | . . . Weapon 13 | 2 6 5 Energy Gun 3 | 1 1 1 Energy Cannon 2 | . . 2 Ballistic Gun 5 | 1 2 2 Ballistic Cannon 1 | . 1 . Launcher 2 | . 2 . Special Weapon . | . . . Impact Weapon . | . . . Slashing Weapon . | . . . Piercing Weapon . | . . . Special Melee Weapon . | . . . Unidentified Prototypes . | . . . Parts Lost 10 | . 7 3 Power 2 | . 2 . Propulsion 5 | . 3 2 Utility 2 | . 1 1 Weapon 1 | . 1 . Highest Loss Streak 3 | . 3 2 To Critical Strikes . | . . . Average Slot Usage (%) 99 | . 99 99 Engine 10 | . 7 14 Core 3 | . 6 . Treads 11 | . 13 8 Wheel 16 | . 14 19 Device 10 | . 14 7 Storage 14 | . 14 14 Protection 3 | . . 6 Energy Gun 9 | . 12 5 Energy Cannon 1 | . . 2 Ballistic Gun 13 | . 13 14 Ballistic Cannon 3 | . . 5 Naked Turns . | . . . Heaviest Build 59 | 12 50 59 Greatest Support 40 | 40 40 40 Greatest Overweight (x) 5 | . 4 5 Average Overweight (x) 2 | . 2 1 Largest Inventory Capacity 20 | 8 20 20 Average Capacity 17 | 7 17 20 Most Carried 20 | 8 13 20 Average Carried 13 | 4 9 17 Final Capacity 20 | 8 20 20 Final Carried 20 | 8 13 20 Class Distribution -------------------- 81% | Mutant 18% | Scavenger-Mutant Dominant Class ---------------- Mutant | -10/Materials Mutant | -10/Subcaves Resources | -11 -10 -10 ----------- Run | Yrd Mat Sub Matter Collected 1275 | 375 339 561 Remotely . | . . . Salvage Created 830 | 163 371 296 Parts 65 | 17 29 19 Haulers Intercepted 1 | . 1 . Recyclers Shooed . | . . . Parts Field Recycled . | . . . Retrieved Matter . | . . . Parts Self-Destructed 6 | . . 6 Prevented . | . . . Kills | -11 -10 -10 ------- Run | Yrd Mat Sub Combat Hostiles Destroyed 16 | . 10 6 Guns 9 | . 5 4 Cannons 2 | . . 2 AOE 5 | . 5 . Classes Destroyed 10 | 3 6 1 Worker 2 | 1 1 . Builder 1 | . 1 . Tunneler 4 | 4 . . Hauler 1 | . 1 . Recycler 1 | 1 . . Operator 1 | . 1 . Watcher 2 | . 2 . Swarmer 3 | . 3 . Grunt 7 | . 7 . Subdweller 6 | . . 6 Best Kill Streak 6 | 3 6 2 Combat Bots Only 5 | . 5 2 Max Kills in Single Turn 3 | 2 3 1 Gunslinging . | . . . Exploded 3 | . 3 . Melee . | . . . Uniques/NPCs Destroyed . | . . . Combat | -11 -10 -10 -------- Run | Yrd Mat Sub Hostile Shots Fired 85 | . 47 38 Missed 19 | . 6 13 Damage Taken 1184 | . 664 520 Core 254 | . 80 174 Absorbed by Shields . | . . . Redirected to Shielding 15 | . . 15 Core Remaining (%) 100 | 100 . . Volleys Fired 108 | 10 38 60 Largest 2 | 2 2 2 Hottest 110 | 60 60 110 Shots Fired 198 | 20 69 109 Gun 149 | 20 62 67 Cannon 43 | . 1 42 Launcher 6 | . 6 . Special . | . . . Kinetic 127 | 10 32 85 Thermal 65 | 10 31 24 Explosive 6 | . 6 . Electromagnetic . | . . . Robot Hit Streak 17 | 4 7 17 Robot Miss Streak 4 | 2 4 2 Penetration Max . | . . . Secondary Targets 1 | . 1 . Max Gunslinging Chain 1 | . 1 . Shots Hit Robots 115 | 11 45 59 Core Hits 56 | 7 28 21 Critical Kills 1 | . 1 . Critical Parts Destroyed . | . . . Critical Strikes 1 | . 1 . Destroy 1 | . 1 . Melee Attacks . | . . . Impact . | . . . Slashing . | . . . Piercing . | . . . Sneak Attacks . | . . . Combat Hostiles . | . . . Follow-up Attacks . | . . . Damage Inflicted 2153 | 153 987 1013 Guns 1150 | 153 507 490 Cannons 523 | . . 523 Explosions 480 | . 480 . Melee . | . . . Ramming . | . . . Kinetic 1070 | 70 223 777 Thermal 603 | 83 284 236 Explosive 480 | . 480 . Electromagnetic . | . . . Impact . | . . . Slashing . | . . . Piercing . | . . . Highest Corruption . | . . . Average Corruption . | . . . Corruption Purged . | . . . Corruption Blocked . | . . . Overload Shots . | . . . Overflow Damage 60 | . 60 . Projectiles . | . . . Explosions 60 | . 60 . Melee . | . . . Knockbacks 3 | . . 3 Impact . | . . . Kinetic 3 | . . 3 Secondary . | . . . Self-Inflicted Damage 144 | . 144 . Shots 5 | . 5 . Rammed . | . . . Targets Rammed . | . . . Kicked . | . . . Crushed . | . . . Highest Temperature 183 | . 183 50 Average Temperature 50 | . 54 20 Received Heat Transfer 303 | . 273 30 Siege Activations . | . . . Robots Corrupted . | . . . Combat Hostiles . | . . . Parts Fried . | . . . Impact Corruptions . | . . . Robots Melted . | . . . Combat Hostiles . | . . . Parts Melted . | . . . Heat Transferred 1134 | 175 650 309 Parts Sabotaged . | . . . Parts Stolen . | . . . Parts Stripped . | . . . Power Chain Reactions . | . . . Alert | -11 -10 -10 ------- Run | Yrd Mat Sub Peak Influence 240 | 30 240 . Initial 19 | . 19 . Average 106 | 14 121 . Maximum Alert Level 1 | . 1 . Low Security (%) 82 | 100 79 . Level 1 17 | . 20 . Level 2 . | . . . Level 3 . | . . . Level 4 . | . . . Level 5 . | . . . High Security . | . . . Max Security . | . . . Squads Dispatched 2 | . 2 . Investigation 1 | . 1 . Extermination . | . . . Reinforcement 1 | . 1 . Assault . | . . . Garrison . | . . . Intercept . | . . . Searches Triggered . | . . . Construction Impeded . | . . . Haulers Reinforced . | . . . Active Scanning Responses . | . . . Cargo Convoy Interrupts . | . . . Stealth | -11 -10 -10 --------- Run | Yrd Mat Sub Distress Signals 2 | . 2 . Communications Jammed . | . . . Distress Signals . | . . . Times Spotted 25 | . 17 8 Peak Tracking Total 6 | . 6 2 Tactical Retreats . | . . . Traps | -11 -10 -10 ------- Run | Yrd Mat Sub Traps Triggered . | . . . Indirectly . | . . . Trap Hack Attempts . | . . . Triggered . | . . . Disarmed 1 | . 1 . Reprogrammed . | . . . Reused . | . . . Traps Extracted . | . . . Installed . | . . . Triggered . | . . . Machines | -11 -10 -10 ---------- Run | Yrd Mat Sub Machines Disabled 3 | . 3 . Max in Single Turn 2 | . 2 . Machines Repaired . | . . . Machines Dismantled . | . . . Machines Sabotaged . | . . . Overloaded Fab Kills . | . . . Hacking | -11 -10 -10 --------- Run | Yrd Mat Sub Machines Accessed 9 | . 9 . Terminals 6 | . 6 . Fabricators . | . . . Repair Stations 1 | . 1 . Recycling Units 2 | . 2 . Scanalyzers . | . . . Garrison Access . | . . . Total Hacks 29 | . 29 . Successful 17 | . 17 . Failed 12 | . 12 . Catastrophic 1 | . 1 . Database Lockouts . | . . . Manual 9 | . 9 . Terminals 21 | . 21 . Fabricators . | . . . Repair Stations 3 | . 3 . Recycling Units 5 | . 5 . Scanalyzers . | . . . Garrison Access . | . . . Terminal Hacks 11 | . 11 . Prototype ID Bank 1 | . 1 . Disarm Traps 1 | . 1 . Dispatch Records 1 | . 1 . Transport Status 1 | . 1 . Recall Reinforcements 1 | . 1 . Hauler Manifests 2 | . 2 . Registered Components 1 | . 1 . Registered Prototypes 1 | . 1 . Zone Layout 2 | . 2 . Fabricator Hacks . | . . . Repair Station Hacks 1 | . 1 . Scan Component 1 | . 1 . Recycling Unit Hacks 2 | . 2 . Retrieve Components 2 | . 2 . Scanalyzer . | . . . Garrison Access Hacks . | . . . Unauthorized Hacks 3 | . 3 . Terminals 3 | . 3 . Botnet 3 | . 3 . Fabricators . | . . . Repair Stations . | . . . Recycling Units . | . . . Scanalyzers . | . . . Garrison Access . | . . . Data Cores Recovered . | . . . Used . | . . . Hacking Detections 7 | . 7 . Full Trace Events 1 | . 1 . Feedback Events . | . . . Feedback Blocked . | . . . Robot Schematics Acquired . | . . . Robots Built . | . . . Authchips . | . . . Time . | . . . Total Robot Build Rating . | . . . Part Schematics Acquired . | . . . Parts Built . | . . . Authchips . | . . . Time . | . . . Total Part Build Rating . | . . . Parts Repaired . | . . . Time . | . . . Parts Recycled . | . . . Recycled Matter . | . . . Retrieved Matter . | . . . Retrieved Components 10 | . 10 . Parts Scanalyzed . | . . . Part Schematics Acquired . | . . . Parts Damaged . | . . . Bothacking | -11 -10 -10 ------------ Run | Yrd Mat Sub Used RIF Installer . | . . . Robots Hacked . | . . . Non-combat . | . . . Combat . | . . . Robot Hacks Applied . | . . . Relay Couplers Released . | . . . Fabnet Peak Effective % . | . . . Robots Rewired . | . . . Allies Hacked . | . . . Hacks Repelled . | . . . Allies | -11 -10 -10 -------- Run | Yrd Mat Sub Total Allies . | . . . Largest Group . | . . . Highest-Rated Group . | . . . Highest-Rated Ally . | . . . Total Orders . | . . . Ally Attacks . | . . . Total Damage . | . . . Kills . | . . . Allies Corrupted . | . . . Allies Melted . | . . . Intel | -11 -10 -10 ------- Run | Yrd Mat Sub Robot Analysis Total . | . . . Derelict Logs Recovered 2 | . . 2 Drone Launches . | . . . Drone Recoveries . | . . . Exploration | -11 -10 -10 ------------- Run | Yrd Mat Sub Turns Passed 2392 | 175 1083 1134 Spaces Moved 1454 | 81 704 669 Core 5 | 5 . . Treads 231 | 76 107 48 Legs . | . . . Wheels 1218 | . 597 621 Hover . | . . . Flight . | . . . Fastest Speed 50 | 50 105 117 Average Speed 134 | 153 132 133 Slowest Speed 250 | 160 160 250 Overloaded Moves . | . . . Propulsion Burnouts . | . . . Robots Hopped . | . . . Cave-ins Triggered . | . . . Exploration Rate (%) 46 | 5 92 43 Regions Visited 2 Branch Regions 1 Pre-discovered Areas 1 | . . 1 Known Exits Taken . | . . . Unknown Exits Taken 2 | 1 1 . Scrap Searched 3 | . . 3 Spaces Dug . | . . . Terrain Destroyed 56 | . 56 . Melee . | . . . Projectile . | . . . AOE 56 | . 56 . Terrain Rammed . | . . . Walls Destroyed . | . . . Machines Disabled . | . . . Actions | -11 -10 -10 --------- Run | Yrd Mat Sub Total 1692 | 108 784 800 Wait 43 | 1 10 32 Move 1452 | 80 703 669 Hop . | . . . Pick Up 36 | 9 13 14 Fast Attach 8 | 6 1 1 Attach 9 | 1 6 2 Detach . | . . . Swap 25 | 1 10 14 Drop 11 | . 3 8 Fire 108 | 10 38 60 Melee . | . . . Ram . | . . . Kick . | . . . Crush . | . . . Escape Stasis . | . . . Rewire . | . . . Trap . | . . . Miscellaneous . | . . . Route ------- -11/Scrapyard -10/Materials (discovered 6 exits: [*Mat x3] / [*Min x2] / [*Sub]) -10/Subcaves (discovered 1 exit: [*Mat]) History --------- Turn | Location | Event 2 | -11/Scrapyard | Met Revision 17 32 | -11/Scrapyard | Discovered new exit (range 16) 176 | -11/Scrapyard | Entered Materials 191 | -10/Materials | Discovered new exit (range 15) 302 | -10/Materials | Discovered new exit (range 16) 304 | -10/Materials | Build established: Mutant 443 | -10/Materials | Discovered new exit (range 15) 598 | -10/Materials | Discovered new exit (range 3) 713 | -10/Materials | Lost 3 parts (2n1w) 887 | -10/Materials | Discovered new exit (range 12) 893 | -10/Materials | Lost 3 parts (1p1n1u) 1250 | -10/Materials | Discovered new exit (range 4) 1259 | -10/Materials | Entered Subcaves 1268 | -10/Subcaves | Learned Materials garrison access intel 1429 | -10/Subcaves | Learned location of Storage (-9) 1456 | -10/Subcaves | A swath of the cavern ceiling suddenly collapsed 1647 | -10/Subcaves | Core integrity fell below 50% 1703 | -10/Subcaves | Shifting Twisted Machinery released Scrap Shield 1711 | -10/Subcaves | Shifting Twisted Machinery released Battle Rifle 1744 | -10/Subcaves | Shifting Twisted Machinery released Sub. Shrapnel Launcher 1746 | -10/Subcaves | Shifting Twisted Machinery released Mak. Leg 1828 | -10/Subcaves | Core integrity fell below 20% 1954 | -10/Subcaves | Shifting Twisted Machinery released Sub. Beam Cannon 1994 | -10/Subcaves | Shifting Twisted Machinery released Sub. Power Source 2052 | -10/Subcaves | A swath of the cavern ceiling suddenly collapsed 2138 | -10/Subcaves | Build established: Scavenger-Mutant 2202 | -10/Subcaves | Discovered new exit (range 7) 2234 | -10/Subcaves | Disturbed a concealed Subdweller 2393 | -10/Subcaves | Destroyed by DT-O0V(R) with Subdweller Machine Gun Last Messages --------------- 02228_ Acquired 24 matter. 02229_ Dropped Sub. Machine Gun. 02233_ Searching scrap... 02233_ Found Mak. Light Armor Plating. 02233_ Found Battle Cannon. 02233_ Found 24 Matter. 02234_ HZ-JU8(R) angrily emerges from the Twisted Machinery. 02234_ Acquired 24 matter. 02234_ Com. Wheel destroyed. 02235_ HZ-JU8(R): "ATK100%!" 02237_ HZ-JU8(R) destroyed. 02242_ Acquired Mak. Light Armor Plating. 02248_ Acquired 35 matter. 02250_ Dropped Lgt. Treads. 02320_ 5K-0CV(R) destroyed. 02323_ Acquired 30 matter. 02381_ Dropped EM Pulse Gun. 02384_ Acquired Sub. Monowheel. 02385_ Acquired 86 matter. 02390_ 6C-R8L(R) emerges from the Twisted Machinery. Map ----- +----------------------------------------------------+ | ?????????????????????????????????????????????????? | | ?????????????????????????????????????????????????? | | ?????????????????????????????????????????????????? | | ?????????????????????????????????????????????????? | | ?????????????????????????????????????????????????? | | ?????????????????????????????????????????????????? | | ?????????????????????????????????????????????????? | | ?????????????????????????????????????????????????? | | ?????????????????????????????????????????????????? | | ?????????????????????? ?????????????????????????? | | ????????????????????%& ?????????????????????????? | | ????????????????????& ?????????????????????????? | | ????????????????????#R #????????????????????????? | | ????????????????????? ????????????????????????? | | ??????????????#?????? % ???????##???????????????? | | ?????????????????????# ?????## ######??????????? | | ????????????????????## ????? #?????????? | | ???????????????????## ##?? ?????????? | | ???????????? ??????#"" #?? #?????????? | | ?????????????# ???#""" #?# #?? ????? | | ????????????## # ## #?? ????? | | ????????????? &&* #??? ?????? | | ?????????????????? !% ! #?# #?????? | | ???????????????????#???#& % ## #?? ####??? | | ?????????????????????#?## ##?# #?? #??? | | ????????????????????#??##@ ##??# #?# %#???? | | ???????????????????????# [#####???# ## #???? | | ???????????????????#??## ##?????### #????? | | ???????????????????# ## ##???### ??????? | | ???????????????????# ##### #????????? | | ??????????????????## ##???????? | | ????????????#????## ######??? | | ?????????????????# #####??? | | ????????????????# ######!& ##??? | | ????????????????# ### ##????## % #??? | | ????????????????# #??#####????#?#! #??? | | ????????????? ??????????????# ##??? | | ???????????? #?????????????### ##??? | | ????????????? #??????????????### ##??? | | ????????????? ###?#??????????#### # ##??? | | ?????????????? #####???#??????????###### ## ##??? | | ??????????????????????????????????### ### ##### | | ??????????????????????????????????##[=#!#" ##### | | ??????????????????????????????????### &[& # | | ??????????????????????????????????##] "##" % % ## | | ??????????????????????? ??????????###]## ## | | ??????????????????????????#???????###### < ## | | ???????????????????????????????????##### | | ??????????????????????????????????????### # | | ??????????????????????????????????????#### ## ## | +----------------------------------------------------+ Best States ------------- Heat Dissipation 25 Energy Generation 14 Energy Capacity 250 Matter Stores 300 Matter Capacity 300 Sight Range 16 Terrain Scan Range 16 Terrain Scan Density 10 Armor Coverage 100 Core Shielding 20 Evasion (%) 40 Recoil Reduction 2 Item Schematics ----------------- None Robot Schematics ------------------ None Fabricated ------------ Nothing Alien Tech Used ----------------- None Achievements -------------- None Challenges ------------ None Game ------ Seed DroneNodeLattice Manual? 0 Play Time 00:31:47 Cumulative 35.3 hours Start 2024.06.21 @ 01:24:00 End 2024.06.21 @ 01:55:01 Sessions 1 Manual Loads 0 Difficulty Rogue Special Mode None Game No. 18 Rogue 18 Adventurer 0 Explorer 0 Win Type - Total 0 Types 0/0/0/0/0/0/0/0/0 Lore% 24 Gallery% 28 Achievement% 24 Wizard Run 0 Options --------- Layout 0 ASCII 0 Keyboard 1 Movement Numpad Keybinds 0 Fullscreen 2 Font 18/SmallcapsGlow Map View 76x50 Zoom Use 0% Tactical HUD 1 Map Filters NONE Filters NONE Steam 1 RUN: b81d6f71-2d99-4655-b86a-01f64917a3c5